lending/lending_fUSD_20250424
["ID","MTS","AMOUNT","RATE_DAILY","PERIOD"]
[358856207,1745488531957,-774.134573,0.0004672,14]
[358856208,1745488531966,-774.134573,0.0004672,14]
[358856209,1745488531976,-774.134573,0.0004672,14]
[358856210,1745488531986,-774.134573,0.0004672,14]
[358856211,1745488531996,-774.134573,0.0004672,14]
[358856212,1745488532006,-774.134573,0.0004672,14]
[358856213,1745488532015,-631.282846,0.0004672,14]
[358856214,1745488532025,-774.134573,0.0004672,14]
[358856215,1745488532036,-631.282846,0.0004672,14]
[358856216,1745488532045,-774.134573,0.0004672,14]
[358856217,1745488532055,-631.282846,0.0004672,14]
[358856218,1745488532064,-631.282846,0.0004672,14]
[358856219,1745488532075,-774.134573,0.0004672,14]
[358856220,1745488532086,-774.134573,0.0004672,14]
[358856221,1745488532098,-631.282846,0.0004672,14]
[358856222,1745488532108,-774.134573,0.0004672,14]
[358856223,1745488532118,-631.282846,0.0004672,14]
[358856224,1745488532128,-774.134572,0.0004672,14]
[358856225,1745488532139,-631.282846,0.0004672,14]
[358856226,1745488532149,-631.282846,0.0004672,14]
[358856227,1745488532159,-631.282846,0.0004672,14]
[358856228,1745488532169,-631.282846,0.0004672,14]
[358856229,1745488532179,-631.282846,0.0004672,14]
[358856230,1745488532189,-631.28285,0.0004672,14]
[358856231,1745488532199,-476.903133,0.0004672,14]
[358856232,1745488532208,-476.903133,0.0004672,14]
[358856233,1745488532218,-476.903133,0.0004672,14]
[358856234,1745488532227,-476.903133,0.0004672,14]
[358856235,1745488532237,-476.903133,0.0004672,14]
[358856236,1745488532246,-476.903133,0.0004672,14]
[358856237,1745488532257,-476.903133,0.0004672,14]
[358856238,1745488532268,-476.903133,0.0004672,14]
[358856239,1745488532278,-476.903133,0.0004672,14]
[358856240,1745488532288,-476.903133,0.0004672,14]
[358856241,1745488532298,-476.903133,0.0004672,14]
[358856242,1745488532308,-476.903133,0.0004672,14]
[358856243,1745488532318,-476.903133,0.0004672,14]
[358856244,1745488532329,-476.903133,0.0004672,14]
[358856245,1745488532338,-476.903133,0.0004672,14]
[358856246,1745488532348,-476.903132,0.0004672,14]
[358856247,1745488532358,-236.765913,0.0004672,14]
[358856248,1745488532367,-236.765913,0.0004672,14]
[358856249,1745488532377,-236.765913,0.0004672,14]
[358856250,1745488532387,-236.765913,0.0004672,14]
[358856251,1745488532397,-236.765913,0.0004672,14]
[358856252,1745488532407,-236.765913,0.0004672,14]
[358856253,1745488532418,-236.765913,0.0004672,14]
[358856254,1745488532429,-236.765913,0.0004672,14]
[358856255,1745488532438,-236.765913,0.0004672,14]
[358856256,1745488532448,-236.765913,0.0004672,14]
[358856257,1745488532458,-236.765913,0.0004672,14]
[358856258,1745488532469,-236.765913,0.0004672,14]
[358856259,1745488532479,-236.765913,0.0004672,14]
[358856260,1745488532490,-236.765906,0.0004672,14]
[358856261,1745488532499,-151.0,0.0004672,14]
[358856262,1745488532510,-151.962676,0.0004672,14]
[358856263,1745488532522,-236.460482,0.0004672,14]
[358856264,1745488532532,-480.552712,0.0004672,14]
[358856265,1745488533031,-236.460482,0.0004672,14]
[358856266,1745488533042,-480.552712,0.0004672,14]
[358856267,1745488533053,-236.460482,0.0004672,14]
[358856268,1745488533063,-480.552712,0.0004672,14]
[358856269,1745488533074,-236.460482,0.0004672,14]
[358856270,1745488533084,-480.552712,0.0004672,14]
[358856271,1745488533094,-480.552712,0.0004672,14]
[358856272,1745488533105,-236.460482,0.0004672,14]
[358856273,1745488533115,-480.552712,0.0004672,14]
[358856274,1745488533126,-236.460482,0.0004672,14]
[358856275,1745488533136,-480.552712,0.0004672,14]
[358856276,1745488533145,-236.460482,0.0004672,14]
[358856277,1745488533155,-480.552712,0.0004672,14]
[358856278,1745488533165,-236.460482,0.0004672,14]
[358856279,1745488533175,-236.460482,0.0004672,14]
[358856280,1745488533185,-480.552712,0.0004672,14]
[358856281,1745488533196,-480.552712,0.0004672,14]
[358856282,1745488533206,-236.460482,0.0004672,14]
[358856283,1745488533216,-480.552712,0.0004672,14]
[358856284,1745488533226,-236.460482,0.0004672,14]
[358856285,1745488533237,-480.552712,0.0004672,14]
[358856286,1745488533248,-236.460482,0.0004672,14]
[358856287,1745488533259,-480.552712,0.0004672,14]
[358856288,1745488533270,-236.460482,0.0004672,14]
[358856289,1745488533281,-480.552712,0.0004672,14]
[358856290,1745488533292,-236.460482,0.0004672,14]
[358856291,1745488533303,-480.552712,0.0004672,14]
[358856292,1745488533314,-236.460482,0.0004672,14]
[358856293,1745488533326,-480.552714,0.0004672,14]
[358856294,1745488533337,-236.460483,0.0004672,14]
[358856295,1745488533348,-1500.0,0.0004672,4]
[358856296,1745488533358,-151.0,0.0004672,14]
[358856297,1745488533369,-151.0,0.0004672,14]
[358856298,1745488533379,-214.128876,0.0004672,14]
[358856299,1745488533390,-151.0,0.0004672,14]
[358856300,1745488533400,-529.535086,0.0004672,14]
[358856301,1745488533411,-151.0,0.0004672,14]
[358856302,1745488533424,-529.535086,0.0004672,14]
[358856303,1745488533435,-151.0,0.0004672,14]
[358856304,1745488533445,-529.535086,0.0004672,14]
[358856305,1745488533456,-151.0,0.0004672,14]
[358856306,1745488533468,-529.535086,0.0004672,14]
[358856307,1745488533479,-151.0,0.0004672,14]
[358856308,1745488533490,-529.535086,0.0004672,14]
[358856309,1745488533502,-151.0,0.0004672,14]
[358856310,1745488533514,-151.0,0.0004672,14]
[358856311,1745488533525,-529.535086,0.0004672,14]
[358856312,1745488533535,-529.535086,0.0004672,14]
[358856313,1745488533547,-529.535086,0.0004672,14]
[358856314,1745488533558,-151.0,0.0004672,14]
[358856315,1745488533568,-529.535086,0.0004672,14]
[358856316,1745488533577,-163.39993,0.0004672,14]
[358856317,1745488533588,-529.535086,0.0004672,14]
[358856318,1745488533599,-529.535086,0.0004672,14]
[358856319,1745488533609,-529.535086,0.0004672,14]
[358856320,1745488533620,-529.535086,0.0004672,14]
[358856321,1745488533631,-529.535086,0.0004672,14]
[358856322,1745488533641,-529.535086,0.0004672,14]
[358856323,1745488533651,-529.535089,0.0004672,14]
[358856324,1745488533661,-1321.286397,0.0004672,14]
[358856325,1745488533672,-1321.286397,0.0004672,14]
[358856326,1745488533682,-1321.286397,0.0004672,14]
[358856327,1745488533692,-1321.286397,0.0004672,14]
[358856328,1745488533703,-1321.286397,0.0004672,14]
[358856329,1745488533713,-1321.286397,0.0004672,14]
[358856330,1745488533723,-1321.286397,0.0004672,14]
[358856331,1745488533734,-1321.286397,0.0004672,14]
[358856332,1745488533744,-1321.286397,0.0004672,14]
[358856333,1745488533755,-1321.286397,0.0004672,14]
[358856334,1745488533765,-1321.286397,0.0004672,14]
[358856335,1745488533776,-1321.286397,0.0004672,14]
[358856336,1745488533785,-1321.286397,0.0004672,14]
[358856337,1745488533795,-1321.286397,0.0004672,14]
[358856338,1745488533805,-1321.286397,0.0004672,14]
[358856339,1745488533815,-347.911459,0.0004672,14]
[358856340,1745488533825,-1321.2864,0.0004672,14]
[358856341,1745488533836,-347.911459,0.0004672,14]
[358856342,1745488533846,-347.911459,0.0004672,14]
[358856343,1745488533857,-347.911459,0.0004672,14]
[358856344,1745488533868,-347.911459,0.0004672,14]
[358856345,1745488533877,-347.911459,0.0004672,14]
[358856346,1745488533888,-347.911459,0.0004672,14]
[358856347,1745488533899,-347.911459,0.0004672,14]
[358856348,1745488533908,-347.911459,0.0004672,14]
[358856349,1745488533919,-347.911459,0.0004672,14]
[358856350,1745488533929,-347.911459,0.0004672,14]
[358856351,1745488533940,-347.911459,0.0004672,14]
[358856352,1745488533950,-347.911459,0.0004672,14]
[358856353,1745488533960,-347.911459,0.0004672,14]
[358856354,1745488533971,-347.911459,0.0004672,14]
[358856355,1745488533981,-347.911459,0.0004672,14]
[358856356,1745488533991,-1234.035919,0.0004672,14]
[358856357,1745488534001,-1234.035919,0.0004672,14]
[358856358,1745488534011,-1234.035919,0.0004672,14]
[358856359,1745488534022,-1234.035919,0.0004672,14]
[358856360,1745488534032,-1234.035919,0.0004672,14]
[358856361,1745488534043,-1234.035919,0.0004672,14]
[358856362,1745488534053,-1234.035919,0.0004672,14]
[358856363,1745488534064,-1234.035919,0.0004672,14]
[358856364,1745488534074,-1234.035919,0.0004672,14]
[358856365,1745488534084,-1234.035919,0.0004672,14]
[358856366,1745488534094,-1234.035919,0.0004672,14]
[358856367,1745488534104,-188.448022,0.0004672,14]
[358856368,1745488534115,-1234.035919,0.0004672,14]
[358856369,1745488534126,-188.448022,0.0004672,14]
[358856370,1745488534136,-1234.035919,0.0004672,14]
[358856371,1745488534147,-188.448022,0.0004672,14]
[358856372,1745488534158,-1234.035919,0.0004672,14]
[358856373,1745488534169,-1234.035919,0.0004672,14]
[358856374,1745488534181,-188.448022,0.0004672,14]
[358856375,1745488534192,-1234.035919,0.0004672,14]
[358856376,1745488534202,-188.448022,0.0004672,14]
[358856377,1745488534212,-188.448022,0.0004672,14]
[358856378,1745488534223,-188.448022,0.0004672,14]
[358856379,1745488534233,-188.448022,0.0004672,14]
[358856380,1745488534243,-188.448022,0.0004672,14]
[358856381,1745488534254,-188.448022,0.0004672,14]
[358856382,1745488534264,-188.448022,0.0004672,14]
[358856383,1745488534275,-188.448022,0.0004672,14]
[358856384,1745488534285,-188.448022,0.0004672,14]
[358856385,1745488534295,-188.448022,0.0004672,14]
[358856386,1745488534306,-194.637015,0.0004672,14]
[358856387,1745488534316,-188.448022,0.0004672,14]
[358856388,1745488534327,-194.637015,0.0004672,14]
[358856389,1745488534337,-188.448032,0.0004672,14]
[358856390,1745488534347,-194.637015,0.0004672,14]
[358856391,1745488534358,-194.637015,0.0004672,14]
[358856392,1745488534368,-194.637015,0.0004672,14]
[358856393,1745488534378,-194.637015,0.0004672,14]
[358856394,1745488534388,-194.637015,0.0004672,14]
[358856395,1745488534399,-194.637015,0.0004672,14]
[358856396,1745488534408,-194.637015,0.0004672,14]
[358856397,1745488534422,-194.637015,0.0004672,14]
[358856398,1745488534433,-194.637015,0.0004672,14]
[358856399,1745488534444,-194.637015,0.0004672,14]
[358856400,1745488534455,-194.637015,0.0004672,14]
[358856401,1745488534467,-194.637015,0.0004672,14]
[358856402,1745488534478,-194.637015,0.0004672,14]
[358856403,1745488534489,-194.637017,0.0004672,14]
[358856404,1745488534502,-251.334761,0.0004672,14]
[358856405,1745488534513,-251.334761,0.0004672,14]
[358856406,1745488534523,-251.334761,0.0004672,14]
[358856407,1745488534533,-251.334761,0.0004672,14]
[358856408,1745488534544,-251.334761,0.0004672,14]
[358856409,1745488534554,-251.334761,0.0004672,14]
[358856410,1745488534566,-251.334761,0.0004672,14]
[358856411,1745488534576,-251.334761,0.0004672,14]
[358856412,1745488534586,-251.334761,0.0004672,14]
[358856413,1745488534595,-251.334761,0.0004672,14]
[358856414,1745488534606,-251.334761,0.0004672,14]
[358856415,1745488534615,-251.334761,0.0004672,14]
[358856416,1745488534625,-251.334761,0.0004672,14]
[358856417,1745488534635,-251.334761,0.0004672,14]
[358856418,1745488534645,-251.334761,0.0004672,14]
[358856419,1745488534655,-251.334758,0.0004672,14]
[358856420,1745488534665,-390.516107,0.0004672,14]
[358856421,1745488534674,-390.516107,0.0004672,14]
[358856422,1745488534684,-390.516107,0.0004672,14]
[358856423,1745488534694,-390.516107,0.0004672,14]
[358856424,1745488534705,-390.516107,0.0004672,14]
[358856425,1745488534715,-390.516107,0.0004672,14]
[358856426,1745488534725,-390.516107,0.0004672,14]
[358856427,1745488534735,-390.516107,0.0004672,14]
[358856428,1745488534745,-390.516107,0.0004672,14]
[358856429,1745488534755,-390.516107,0.0004672,14]
[358856430,1745488534765,-390.516107,0.0004672,14]
[358856431,1745488534776,-390.516107,0.0004672,14]
[358856432,1745488534786,-390.516107,0.0004672,14]
[358856433,1745488534796,-390.516107,0.0004672,14]
[358856434,1745488534806,-390.516107,0.0004672,14]
[358856435,1745488534816,-390.516105,0.0004672,14]
[358856436,1745488534826,-179.983406,0.0004672,45]
[358856437,1745488534835,-3595.90176123,0.00046752,7]
[358856438,1745488534845,-354214.72273856,0.00046753,7]
[358856439,1745488534855,-1898.22,0.00046849,7]
[358856440,1745488534865,-152.69216,0.00046849,30]
[358856441,1745488534876,-8000.37,0.00046849,120]
[358856442,1745488534894,-4419.0,0.00046912,117]
[358856443,1745488534911,-1071.0,0.0004698,30]
[358856444,1745488534923,-46901.45563665,0.00047,7]
[358856445,1745488534932,-1000.0,0.00047,2]
[358856446,1745488534942,-11728.96,0.00047,14]
[358856447,1745488534951,-342.0,0.00047,90]
[358856448,1745488534962,-918.0,0.00047,2]
[358856449,1745488534972,-796.0,0.00047,2]
[358856450,1745488534983,-152.69216,0.00047049,30]
[358856451,1745488534994,-1898.22,0.00047123,7]
[358856452,1745488535005,-164.62681755,0.00047123,10]
[358856453,1745488535015,-200.0,0.00047187,7]
[358856454,1745488535024,-152.69216,0.00047249,30]
[358856455,1745488535034,-342.0,0.00047338,90]
[358856456,1745488535044,-1898.25969433,0.00047397,7]
[358856457,1745488535053,-2000.0,0.00047411,2]
[358856458,1745488535063,-15728.14241987,0.00047444,2]
[358856459,1745488535073,-152.69216,0.00047449,30]
[358856460,1745488535083,-5566.0,0.000475,5]
[358856461,1745488535093,-179.983406,0.00047512,45]
[358856462,1745488535102,-150.0,0.00047585,2]
[358856463,1745488535112,-5253.05166381,0.000476,2]
[358856464,1745488535122,-152.69216,0.00047649,30]
[358856465,1745488535131,-200.0,0.00047659,7]
[358856466,1745488535141,-8000.37,0.00047671,120]
[358856467,1745488535150,-200.0,0.000477,84]
[358856468,1745488535161,-3461.95507342,0.000478,2]
[358856469,1745488535171,-152.69216,0.00047849,30]
[358856470,1745488535181,-190.45,0.00047945,120]
[358856471,1745488535190,-88000.0,0.00048,28]
[358856472,1745488535199,-193.76555696,0.00048,15]
[358856473,1745488535209,-3993.0,0.00048,7]
[358856474,1745488535219,-152.69216,0.00048049,30]
[358856475,1745488535229,-150.0,0.00048124,3]
[358856476,1745488535238,-200.0,0.00048136,7]
[358856477,1745488535247,-152.69216,0.00048249,30]
[358856478,1745488535258,-179.983406,0.00048305,45]
[358856479,1745488535267,-155.10302643,0.0004835,2]
[358856480,1745488535277,-200000.0,0.00048411,120]
[358856481,1745488535287,-150.0,0.0004845,2]
[358856482,1745488535297,-8000.37,0.00048493,120]
[358856483,1745488535307,-200.0,0.00048617,7]
[358856484,1745488535317,-1170.65,0.00048687,2]
[358856485,1745488535327,-200.0,0.000487,87]
[358856486,1745488535336,-21801.71159022,0.000489,15]
[358856487,1745488535346,-19835.08695269,0.00049,14]
[358856488,1745488535356,-859.05427117,0.00049,2]
[358856489,1745488535366,-336.0,0.00049,15]
[358856490,1745488535376,-10000.0,0.00049,7]
[358856491,1745488535388,-1050.0,0.00049,2]
[358856492,1745488535397,-50267.92,0.00049,60]
[358856493,1745488535407,-279.89139061,0.00049096,2]
[358856494,1745488535419,-179.983406,0.00049098,45]
[358856495,1745488535429,-2000.0,0.000493,2]
[358856496,1745488535439,-190.45,0.00049315,120]
[358856497,1745488535449,-8000.37,0.00049315,120]
[358856498,1745488535459,-700.0,0.00049315,12]
[358856499,1745488535469,-700.0,0.00049315,12]
[358856500,1745488535479,-155.0,0.00049315,2]
[358856501,1745488535489,-179.983406,0.00049398,60]
[358856502,1745488535501,-500.0,0.000494,120]
[358856503,1745488535511,-342.0,0.00049418,120]
[358856504,1745488535521,-1071.0,0.00049452,30]
[358856505,1745488535530,-3000.0,0.000495,2]
[358856506,1745488535539,-150.0,0.00049687,3]
[358856507,1745488535549,-200.0,0.000497,90]
[358856508,1745488535559,-1000.0,0.00049779,3]
[358856509,1745488535575,-179.983406,0.0004989,45]
[358856510,1745488535585,-350000.0,0.000499,7]
[358856511,1745488535595,-632.6,0.0004999,2]
[358856512,1745488535605,-1140.02750823,0.0005,2]
[358856513,1745488535614,-1520.52235242,0.0005,2]
[358856514,1745488535624,-150.0,0.0005,2]
[358856515,1745488535634,-235.5,0.0005,14]
[358856516,1745488535643,-300.0,0.0005,15]
[358856517,1745488535653,-3000.0,0.0005,2]
[358856518,1745488535663,-2830.0,0.0005,10]
[358856519,1745488535673,-4434.16949141,0.0005,2]
[358856520,1745488535683,-69000.0,0.0005,6]
[358856521,1745488535692,-1000.0,0.0005,120]
[358856522,1745488535702,-796.0,0.0005,2]
[358856523,1745488535712,-893.0,0.0005,120]
[358856524,1745488535723,-220.199828,0.00050009,4]
[358856525,1745488535732,-369.76309055,0.000501,2]
[358856526,1745488535742,-1621.16760011,0.00050105,10]
[358856527,1745488535751,-8000.37,0.00050136,120]
[358856528,1745488535761,-1038.60729262,0.00050152,10]
[358856529,1745488535772,-2000.0,0.00050215,10]
[358856530,1745488535782,-190.45,0.00050684,120]
[358856531,1745488535792,-200.0,0.000507,93]
[358856532,1745488535802,-1170.65,0.00050951,2]
[358856533,1745488535811,-8000.37,0.00050958,120]
[358856534,1745488535821,-1000.0,0.00051,120]
[358856535,1745488535831,-307.87480004,0.00051,2]
[358856536,1745488535841,-1100.0,0.00051,2]
[358856537,1745488535852,-150.0,0.00051249,3]
[358856538,1745488535861,-456.49209675,0.000515,5]
[358856539,1745488535871,-7853.0,0.00051575,8]
[358856540,1745488535881,-200.0,0.000517,96]
[358856541,1745488535890,-534.55586747,0.00051726,7]
[358856542,1745488535900,-8000.37,0.0005178,120]
[358856543,1745488535911,-407528.16112544,0.000518,7]
[358856544,1745488535920,-346.0,0.00051889,120]
[358856545,1745488535930,-5052.24560366,0.00052,30]
[358856546,1745488535939,-11728.96,0.00052,14]
[358856547,1745488535949,-893.0,0.00052,120]
[358856548,1745488535959,-13983.02748295,0.00052,30]
[358856549,1745488535969,-2438.0,0.00052005,30]
[358856550,1745488535979,-190.45,0.00052054,120]
[358856551,1745488535989,-155.0,0.00052054,2]
[358856552,1745488535998,-1071.0,0.00052055,30]
[358856553,1745488536009,-179.983406,0.00052096,60]
[358856554,1745488536019,-2000.0,0.000521,2]
[358856555,1745488536028,-5034.38683674,0.00052384,40]
[358856556,1745488536038,-5000.0,0.00052384,40]
[358856557,1745488536047,-200.0,0.00052411,7]
[358856558,1745488536057,-500.0,0.000525,120]
[358856559,1745488536067,-8000.37,0.00052602,120]
[358856560,1745488536077,-200.0,0.000527,98]
[358856561,1745488536090,-150.0,0.00052812,3]
[358856562,1745488536100,-400.0,0.0005284,2]
[358856563,1745488536111,-1150.0,0.00053,2]
[358856564,1745488536121,-1000.0,0.00053,120]
[358856565,1745488536132,-796.0,0.00053,2]
[358856566,1745488536144,-1076.79,0.00053,2]
[358856567,1745488536154,-50267.92,0.00053,60]
[358856568,1745488536165,-1170.65,0.00053215,2]
[358856569,1745488536174,-500.0,0.0005335,7]
[358856570,1745488536184,-200.0,0.00053411,7]
[358856571,1745488536194,-190.65,0.00053424,120]
[358856572,1745488536205,-8000.37,0.00053424,120]
[358856573,1745488536215,-971.3,0.00053569,120]
[358856574,1745488536225,-200.0,0.000537,101]
[358856575,1745488536235,-4374375.27,0.0005379,120]
[358856576,1745488536245,-718.84054163,0.00053794,120]
[358856577,1745488536255,-334.16444572,0.00053795,120]
[358856578,1745488536265,-884.9902284,0.00053795,120]
[358856579,1745488536280,-1000.0,0.00053816,3]
[358856580,1745488536290,-322.10191109,0.00054,2]
[358856581,1745488536300,-845151.0,0.00054,120]
[358856582,1745488536311,-893.0,0.00054,120]
[358856583,1745488536321,-8000.37,0.00054246,120]
[358856584,1745488536332,-2110.0,0.00054295,30]
[358856585,1745488536342,-1000.0,0.00054315,3]
[358856586,1745488536351,-996.93120274,0.00054356,21]
[358856587,1745488536362,-150.0,0.00054374,3]
[358856588,1745488536372,-179.983406,0.00054392,90]
[358856589,1745488536383,-179.983406,0.00054392,90]
[358856590,1745488536393,-179.983406,0.00054392,90]
[358856591,1745488536402,-179.983406,0.00054392,90]
[358856592,1745488536412,-179.983406,0.00054392,90]
[358856593,1745488536424,-200.0,0.00054411,7]
[358856594,1745488536433,-150.0,0.00054492,7]
[358856595,1745488536442,-1000.0,0.0005452,120]
[358856596,1745488536452,-201.0,0.00054521,60]
[358856597,1745488536463,-200.0,0.000547,104]
[358856598,1745488536474,-150.0,0.00054739,7]
[358856599,1745488536484,-1000.0,0.00054767,31]
[358856600,1745488536495,-1000.0,0.00054767,31]
[358856601,1745488536505,-1000.0,0.00054767,31]
[358856602,1745488536515,-1000.0,0.00054767,31]
[358856603,1745488536525,-214.37462302,0.00054767,31]
[358856604,1745488536534,-400.0,0.0005477,7]
[358856605,1745488536543,-700.0,0.0005477,7]
[358856606,1745488536552,-155.0,0.00054793,2]
[358856607,1745488536561,-1140.07126485,0.00054794,2]
[358856608,1745488536571,-1510.0573003,0.00054794,120]
[358856609,1745488536580,-10000.0,0.00054794,120]
[358856610,1745488536590,-155.0,0.00054794,30]
[358856611,1745488536599,-294.22750257,0.00054794,30]
[358856612,1745488536609,-503.0,0.00054794,60]
[358856613,1745488536619,-503.0,0.00054794,60]
[358856614,1745488536629,-503.0,0.00054794,60]
[358856615,1745488536639,-503.0,0.00054794,60]
[358856616,1745488536648,-503.0,0.00054794,60]
[358856617,1745488536657,-503.0,0.00054794,60]
[358856618,1745488536666,-503.0,0.00054794,60]
[358856619,1745488536676,-503.0,0.00054794,60]
[358856620,1745488536685,-503.0,0.00054794,60]
[358856621,1745488536695,-503.0,0.00054794,60]
[358856622,1745488536704,-503.0,0.00054794,60]
[358856623,1745488536714,-503.0,0.00054794,60]
[358856624,1745488536724,-503.0,0.00054794,60]
[358856625,1745488536733,-503.0,0.00054794,60]
[358856626,1745488536743,-503.0,0.00054794,60]
[358856627,1745488536752,-503.0,0.00054794,60]
[358856628,1745488536762,-503.0,0.00054794,60]
[358856629,1745488536775,-503.0,0.00054794,60]
[358856630,1745488536784,-503.0,0.00054794,60]
[358856631,1745488536794,-503.0,0.00054794,60]
[358856632,1745488536804,-503.0,0.00054794,60]
[358856633,1745488536813,-503.0,0.00054794,60]
[358856634,1745488536823,-503.0,0.00054794,60]
[358856635,1745488536832,-506.0,0.00054794,60]
[358856636,1745488536842,-150.0,0.00054794,60]
[358856637,1745488536852,-152.53372059,0.00054794,60]
[358856638,1745488536861,-500.0,0.00054794,60]
[358856639,1745488536870,-500.0,0.00054794,60]
[358856640,1745488536879,-500.0,0.00054794,60]
[358856641,1745488536888,-500.0,0.00054794,60]
[358856642,1745488536899,-500.0,0.00054794,60]
[358856643,1745488536909,-500.0,0.00054794,60]
[358856644,1745488536918,-500.0,0.00054794,60]
[358856645,1745488536928,-464.34432765,0.00054794,60]
[358856646,1745488536938,-150.0,0.00054794,2]
[358856647,1745488536949,-500.0,0.00054794,60]
[358856648,1745488536959,-500.0,0.00054794,60]
[358856649,1745488536968,-500.0,0.00054794,60]
[358856650,1745488536979,-500.0,0.00054794,60]
[358856651,1745488536989,-500.0,0.00054794,60]
[358856652,1745488536998,-369.88542749,0.00054794,60]
[358856653,1745488537007,-151.53725633,0.00054794,60]
[358856654,1745488537018,-150.0,0.00054794,60]
[358856655,1745488537027,-150.0,0.00054794,60]
[358856656,1745488537037,-280.7785562,0.00054794,60]
[358856657,1745488537048,-150.0,0.00054794,2]
[358856658,1745488537061,-150.0,0.00054794,60]
[358856659,1745488537071,-150.0,0.00054794,60]
[358856660,1745488537082,-150.0,0.00054794,60]
[358856661,1745488537092,-152.77490311,0.00054794,60]
[358856662,1745488537104,-500.0,0.00054794,60]
[358856663,1745488537116,-500.0,0.00054794,60]
[358856664,1745488537127,-500.0,0.00054794,60]
[358856665,1745488537137,-463.27980547,0.00054794,60]
[358856666,1745488537147,-150.0,0.00054794,60]
[358856667,1745488537158,-150.0,0.00054794,60]
[358856668,1745488537168,-152.68422111,0.00054794,60]
[358856669,1745488537178,-150.0,0.00054794,60]
[358856670,1745488537187,-150.0,0.00054794,60]
[358856671,1745488537197,-150.0,0.00054794,60]
[358856672,1745488537207,-150.0,0.00054794,60]
[358856673,1745488537216,-150.0,0.00054794,60]
[358856674,1745488537226,-240.0110271,0.00054794,60]
[358856675,1745488537244,-500.0,0.00054794,60]
[358856676,1745488537265,-500.0,0.00054794,60]
[358856677,1745488537281,-500.0,0.00054794,60]
[358856678,1745488537299,-500.0,0.00054794,60]
[358856679,1745488537318,-533.51134533,0.00054794,60]
[358856680,1745488537336,-454.0,0.00054794,60]
[358856681,1745488537351,-454.0,0.00054794,60]
[358856682,1745488537368,-454.0,0.00054794,60]
[358856683,1745488537387,-454.0,0.00054794,60]
[358856684,1745488537406,-454.0,0.00054794,60]
[358856685,1745488537426,-454.0,0.00054794,60]
[358856686,1745488537444,-454.0,0.00054794,60]
[358856687,1745488537462,-454.0,0.00054794,60]
[358856688,1745488537480,-454.0,0.00054794,60]
[358856689,1745488537497,-454.0,0.00054794,60]
[358856690,1745488537515,-454.0,0.00054794,60]
[358856691,1745488537532,-454.0,0.00054794,60]
[358856692,1745488537549,-454.0,0.00054794,60]
[358856693,1745488537562,-454.0,0.00054794,60]
[358856694,1745488537576,-454.0,0.00054794,60]
[358856695,1745488537595,-454.0,0.00054794,60]
[358856696,1745488537607,-454.0,0.00054794,60]
[358856697,1745488537623,-454.0,0.00054794,60]
[358856698,1745488537641,-454.0,0.00054794,60]
[358856699,1745488537657,-454.0,0.00054794,60]
[358856700,1745488537672,-454.0,0.00054794,60]
[358856701,1745488537687,-454.0,0.00054794,60]
[358856702,1745488537702,-454.0,0.00054794,60]
[358856703,1745488537717,-465.0362588,0.00054794,60]
[358856704,1745488537731,-150.0,0.00054794,60]
[358856705,1745488537746,-163.49738022,0.00054794,60]
[358856706,1745488537761,-500.0,0.00054794,60]